[Event "Titled Tuesday Blitz May 03 Early 2022"]
[White "Manukian, Artak"]
[Black "Zainullina, Nataliya"]
[WhiteFideId "13301373"]
[BlackFideId "4145488"]
[WhiteElo "2368"]
[BlackElo "2062"]
[Result "1-0"]
[Round "05"]
[TimeControl "180+1"]
[Date "2022.05.03"]
[WhiteClock "0:00:17"]
[BlackClock "0:00:25"]

1. e4 {[%clk 0:02:57]}  c6 {[%clk 0:03:00]} 2. d4 {[%clk 0:02:57]}  d5 {[%clk 0:03:00]} 3. e5 {[%clk 0:02:57]}  Bf5 {[%clk 0:02:59]} 4. c4 {[%clk 0:02:57]}  e6 {[%clk 0:02:59]} 5. Nc3 {[%clk 0:02:57]}  Bg6 {[%clk 0:02:57]} 6. Nf3 {[%clk 0:02:53]}  Ne7 {[%clk 0:02:57]} 7. Nh4 {[%clk 0:02:50]}  Nf5 {[%clk 0:02:56]} 8. Nxf5 {[%clk 0:02:49]}  Bxf5 {[%clk 0:02:56]} 9. Qb3 {[%clk 0:02:48]}  Qc7 {[%clk 0:02:54]} 10. Be3 {[%clk 0:02:40]}  Be7 {[%clk 0:02:51]} 11. Rc1 {[%clk 0:02:38]}  Qd7 {[%clk 0:02:42]} 12. Be2 {[%clk 0:02:18]}  O-O {[%clk 0:02:40]} 13. O-O {[%clk 0:02:17]}  Na6 {[%clk 0:02:34]} 14. cxd5 {[%clk 0:02:16]}  cxd5 {[%clk 0:02:31]} 15. Bxa6 {[%clk 0:02:07]}  bxa6 {[%clk 0:02:32]} 16. Qa4 {[%clk 0:02:06]}  Qb7 {[%clk 0:02:25]} 17. b3 {[%clk 0:01:51]}  Rfc8 {[%clk 0:02:21]} 18. Rfd1 {[%clk 0:01:45]}  Rc7 {[%clk 0:02:13]} 19. Ne2 {[%clk 0:01:45]}  Rac8 {[%clk 0:02:13]} 20. Rxc7 {[%clk 0:01:44]}  Qxc7 {[%clk 0:02:13]} 21. Rc1 {[%clk 0:01:44]}  Qb7 {[%clk 0:02:10]} 22. h3 {[%clk 0:01:36]}  h6 {[%clk 0:02:01]} 23. Qa5 {[%clk 0:01:22]}  Bd3 {[%clk 0:01:45]} 24. Rxc8+ {[%clk 0:01:13]}  Qxc8 {[%clk 0:01:45]} 25. Qc3 {[%clk 0:01:14]}  Qxc3 {[%clk 0:01:25]} 26. Nxc3 {[%clk 0:01:15]}  Bb5 {[%clk 0:01:23]} 27. Nxb5 {[%clk 0:00:43]}  axb5 {[%clk 0:01:23]} 28. g4 {[%clk 0:00:42]}  Kf8 {[%clk 0:01:23]} 29. Kf1 {[%clk 0:00:36]}  Ke8 {[%clk 0:01:23]} 30. Ke2 {[%clk 0:00:36]}  Kd7 {[%clk 0:01:24]} 31. f4 {[%clk 0:00:37]}  Kc6 {[%clk 0:01:22]} 32. f5 {[%clk 0:00:36]}  Kb6 {[%clk 0:01:20]} 33. Bd2 {[%clk 0:00:31]}  Kc6 {[%clk 0:00:58]} 34. Kd3 {[%clk 0:00:31]}  Kd7 {[%clk 0:00:56]} 35. f6 {[%clk 0:00:24]}  Bf8 {[%clk 0:00:47]} 36. h4 {[%clk 0:00:23]}  Kd8 {[%clk 0:00:42]} 37. h5 {[%clk 0:00:22]}  Kd7 {[%clk 0:00:37]} 38. a4 {[%clk 0:00:21]}  a6 {[%clk 0:00:36]} 39. Kc3 {[%clk 0:00:18]}  Kc6 {[%clk 0:00:34]} 40. Be3 {[%clk 0:00:16]}  Kb6 {[%clk 0:00:33]} 41. Bd2 {[%clk 0:00:15]}  Ka5 {[%clk 0:00:32]} 42. Kd3+ {[%clk 0:00:14]}  Kb6 {[%clk 0:00:32]} 43. fxg7 {[%clk 0:00:13]}  Bxg7 {[%clk 0:00:30]} 44. g5 {[%clk 0:00:13]}  hxg5 {[%clk 0:00:28]} 45. axb5 {[%clk 0:00:14]}  Kxb5 {[%clk 0:00:27]} 46. Bxg5 {[%clk 0:00:14]}  Kb4 {[%clk 0:00:27]} 47. Kc2 {[%clk 0:00:14]}  a5 {[%clk 0:00:26]} 48. h6 {[%clk 0:00:14]}  Bh8 {[%clk 0:00:25]} 49. h7 {[%clk 0:00:14]}  Bg7 {[%clk 0:00:26]} 50. Bf6 {[%clk 0:00:14]}  Bxf6 {[%clk 0:00:23]} 51. exf6 {[%clk 0:00:15]}  a4 {[%clk 0:00:23]} 52. bxa4 {[%clk 0:00:15]}  Kxa4 {[%clk 0:00:24]} 53. h8=Q {[%clk 0:00:16]}  Kb4 {[%clk 0:00:25]} 54. Qf8+ {[%clk 0:00:16]}  Kc4 {[%clk 0:00:25]} 55. Qc5# {[%clk 0:00:17]} 1-0


[Site "https://www.chess.com"]

[Event "Titled Tuesday Blitz May 03 Early 2022"]
[White "Martinez Alcantara, Jose Eduardo"]
[Black "Kouskoutis, Georgios-Alexandros"]
[WhiteFideId "3805662"]
[BlackFideId "4234049"]
[WhiteElo "2917"]
[BlackElo "2541"]
[Result "1-0"]
[Round "05"]
[TimeControl "180+1"]
[Date "2022.05.03"]
[WhiteClock "0:00:41"]
[BlackClock "0:00:01"]

1. e4 {[%clk 0:03:00]}  c5 {[%clk 0:02:57]} 2. Nf3 {[%clk 0:03:01]}  d6 {[%clk 0:02:55]} 3. c3 {[%clk 0:03:01]}  Nf6 {[%clk 0:02:55]} 4. h3 {[%clk 0:03:02]}  g6 {[%clk 0:02:55]} 5. Bd3 {[%clk 0:03:03]}  Bg7 {[%clk 0:02:55]} 6. Bc2 {[%clk 0:03:03]}  O-O {[%clk 0:02:55]} 7. d4 {[%clk 0:03:04]}  cxd4 {[%clk 0:02:56]} 8. cxd4 {[%clk 0:03:05]}  Nc6 {[%clk 0:02:49]} 9. O-O {[%clk 0:03:05]}  e5 {[%clk 0:02:11]} 10. d5 {[%clk 0:03:05]}  Nb4 {[%clk 0:02:09]} 11. Bb3 {[%clk 0:03:05]}  a5 {[%clk 0:01:59]} 12. Nc3 {[%clk 0:03:04]}  Bd7 {[%clk 0:01:58]} 13. a3 {[%clk 0:02:59]}  Na6 {[%clk 0:01:57]} 14. Be3 {[%clk 0:02:59]}  Rc8 {[%clk 0:01:45]} 15. Bc2 {[%clk 0:02:48]}  Nc5 {[%clk 0:01:29]} 16. b4 {[%clk 0:02:38]}  axb4 {[%clk 0:01:27]} 17. axb4 {[%clk 0:02:39]}  Na6 {[%clk 0:01:25]} 18. Na2 {[%clk 0:02:37]}  Bb5 {[%clk 0:01:19]} 19. Bd3 {[%clk 0:02:37]}  Bc4 {[%clk 0:01:13]} 20. Bxc4 {[%clk 0:02:35]}  Rxc4 {[%clk 0:01:14]} 21. Nd2 {[%clk 0:02:35]}  Rc8 {[%clk 0:01:08]} 22. Rc1 {[%clk 0:02:35]}  Qd7 {[%clk 0:01:05]} 23. Qb3 {[%clk 0:02:31]}  Qb5 {[%clk 0:00:59]} 24. Rb1 {[%clk 0:02:27]}  Rc7 {[%clk 0:00:51]} 25. Nc3 {[%clk 0:02:27]}  Qd3 {[%clk 0:00:51]} 26. Na4 {[%clk 0:02:22]}  Qxb3 {[%clk 0:00:41]} 27. Rxb3 {[%clk 0:02:23]}  b5 {[%clk 0:00:36]} 28. Nc3 {[%clk 0:02:21]}  Rb8 {[%clk 0:00:36]} 29. Ra1 {[%clk 0:02:19]}  Nxb4 {[%clk 0:00:33]} 30. Rab1 {[%clk 0:02:04]}  h5 {[%clk 0:00:21]} 31. Kf1 {[%clk 0:01:49]}  Bf8 {[%clk 0:00:11]} 32. Rxb4 {[%clk 0:01:44]}  Rxc3 {[%clk 0:00:11]} 33. Rxb5 {[%clk 0:01:45]}  Rxb5 {[%clk 0:00:10]} 34. Rxb5 {[%clk 0:01:46]}  Rc2 {[%clk 0:00:09]} 35. Rb4 {[%clk 0:01:38]}  Kg7 {[%clk 0:00:09]} 36. Ke2 {[%clk 0:01:38]}  Ra2 {[%clk 0:00:08]} 37. Kd3 {[%clk 0:01:35]}  Ra3+ {[%clk 0:00:08]} 38. Ke2 {[%clk 0:01:35]}  Ra2 {[%clk 0:00:08]} 39. g3 {[%clk 0:01:20]}  Be7 {[%clk 0:00:08]} 40. Kf3 {[%clk 0:01:16]}  Bd8 {[%clk 0:00:07]} 41. Nc4 {[%clk 0:01:14]}  Be7 {[%clk 0:00:06]} 42. Rb7 {[%clk 0:01:14]}  Kf8 {[%clk 0:00:05]} 43. Bh6+ {[%clk 0:01:09]}  Ke8 {[%clk 0:00:06]} 44. Be3 {[%clk 0:00:52]}  Kd8 {[%clk 0:00:03]} 45. Na5 {[%clk 0:00:43]}  Ke8 {[%clk 0:00:01]} 46. Nc6 {[%clk 0:00:41]}  Nd7 {[%clk 0:00:01]} 47. Rc7 {[%clk 0:00:41]} 1-0


[Site "https://www.chess.com"]

[Event "Titled Tuesday Blitz May 03 Early 2022"]
[White "Melikyan, Gnel"]
[Black "Bacrot, Etienne"]
[WhiteFideId "54109990"]
[BlackFideId "605506"]
[WhiteElo "1772"]
[BlackElo "2673"]
[Result "1/2-1/2"]
[Round "05"]
[TimeControl "180+1"]
[Date "2022.05.03"]
[WhiteClock "0:00:28"]
[BlackClock "0:00:09"]

1. e4 {[%clk 0:02:59]}  c5 {[%clk 0:02:59]} 2. Nf3 {[%clk 0:02:58]}  d6 {[%clk 0:02:58]} 3. d4 {[%clk 0:02:52]}  cxd4 {[%clk 0:02:59]} 4. Nxd4 {[%clk 0:02:53]}  Nf6 {[%clk 0:02:59]} 5. Nc3 {[%clk 0:02:53]}  Nc6 {[%clk 0:02:59]} 6. Bc4 {[%clk 0:02:49]}  e6 {[%clk 0:02:58]} 7. Bb3 {[%clk 0:02:47]}  Be7 {[%clk 0:02:59]} 8. O-O {[%clk 0:02:46]}  a6 {[%clk 0:02:58]} 9. Be3 {[%clk 0:02:45]}  Qc7 {[%clk 0:02:59]} 10. f3 {[%clk 0:02:43]}  O-O {[%clk 0:02:55]} 11. Qe2 {[%clk 0:02:43]}  Na5 {[%clk 0:02:53]} 12. Rfd1 {[%clk 0:02:39]}  b5 {[%clk 0:02:49]} 13. a3 {[%clk 0:02:32]}  Nxb3 {[%clk 0:02:44]} 14. cxb3 {[%clk 0:02:30]}  Bb7 {[%clk 0:02:38]} 15. Rac1 {[%clk 0:02:29]}  Qb8 {[%clk 0:02:34]} 16. b4 {[%clk 0:02:29]}  d5 {[%clk 0:02:31]} 17. exd5 {[%clk 0:02:24]}  Nxd5 {[%clk 0:02:30]} 18. Nxd5 {[%clk 0:02:23]}  Bxd5 {[%clk 0:02:30]} 19. Nc6 {[%clk 0:02:23]}  Bxc6 {[%clk 0:02:27]} 20. Rxc6 {[%clk 0:02:24]}  Rd8 {[%clk 0:02:18]} 21. Rdc1 {[%clk 0:02:20]}  Bd6 {[%clk 0:02:10]} 22. g3 {[%clk 0:02:11]}  Qb7 {[%clk 0:02:01]} 23. Qc2 {[%clk 0:02:07]}  h6 {[%clk 0:01:54]} 24. Kf2 {[%clk 0:02:05]}  Be5 {[%clk 0:01:44]} 25. Ke2 {[%clk 0:01:45]}  Bf6 {[%clk 0:01:32]} 26. b3 {[%clk 0:01:39]}  Qd7 {[%clk 0:01:28]} 27. Rd1 {[%clk 0:01:36]}  Qe8 {[%clk 0:01:16]} 28. Rxd8 {[%clk 0:01:33]}  Qxd8 {[%clk 0:01:16]} 29. Qe4 {[%clk 0:01:29]}  Qd7 {[%clk 0:00:48]} 30. Bc5 {[%clk 0:01:06]}  Qe8 {[%clk 0:00:28]} 31. Rc7 {[%clk 0:00:56]}  Bb2 {[%clk 0:00:21]} 32. Qb7 {[%clk 0:00:40]}  Bxa3 {[%clk 0:00:15]} 33. Re7 {[%clk 0:00:40]}  Qc8 {[%clk 0:00:15]} 34. Rxf7 {[%clk 0:00:38]}  Qxb7 {[%clk 0:00:15]} 35. Rxb7 {[%clk 0:00:39]}  e5 {[%clk 0:00:13]} 36. Kd3 {[%clk 0:00:39]}  Bb2 {[%clk 0:00:12]} 37. Ke4 {[%clk 0:00:39]}  a5 {[%clk 0:00:09]} 38. Rxb5 {[%clk 0:00:38]}  axb4 {[%clk 0:00:09]} 39. Bxb4 {[%clk 0:00:37]}  Rd8 {[%clk 0:00:09]} 40. Rd5 {[%clk 0:00:34]}  Rb8 {[%clk 0:00:09]} 41. Bd6 {[%clk 0:00:35]}  Rxb3 {[%clk 0:00:09]} 42. Bxe5 {[%clk 0:00:35]}  Bxe5 {[%clk 0:00:09]} 43. Rxe5 {[%clk 0:00:35]}  Kf7 {[%clk 0:00:10]} 44. Rd5 {[%clk 0:00:34]}  Rb4+ {[%clk 0:00:10]} 45. Rd4 {[%clk 0:00:34]}  Rb5 {[%clk 0:00:10]} 46. h4 {[%clk 0:00:35]}  Rb3 {[%clk 0:00:10]} 47. g4 {[%clk 0:00:35]}  Rb5 {[%clk 0:00:10]} 48. Kf4 {[%clk 0:00:35]}  g6 {[%clk 0:00:09]} 49. Rd7+ {[%clk 0:00:35]}  Kf6 {[%clk 0:00:09]} 50. g5+ {[%clk 0:00:32]}  hxg5+ {[%clk 0:00:08]} 51. hxg5+ {[%clk 0:00:33]}  Ke6 {[%clk 0:00:08]} 52. Rg7 {[%clk 0:00:33]}  Rb4+ {[%clk 0:00:08]} 53. Kg3 {[%clk 0:00:31]}  Kf5 {[%clk 0:00:08]} 54. f4 {[%clk 0:00:28]}  Rb3+ {[%clk 0:00:09]} 55. Kg2 {[%clk 0:00:28]}  Kxf4 {[%clk 0:00:09]} 56. Rxg6 {[%clk 0:00:28]}  Rb5 {[%clk 0:00:09]} 57. Kf2 {[%clk 0:00:28]}  Rxg5 {[%clk 0:00:09]} 58. Rxg5 {[%clk 0:00:28]}  Kxg5 {[%clk 0:00:09]} 1/2-1/2


[Site "https://www.chess.com"]

[Event "Titled Tuesday Blitz May 03 Early 2022"]
[White "Mikhnenko, Alexander"]
[Black "Bas Mas, Jose Joaquin"]
[WhiteFideId "34143014"]
[BlackFideId "22219064"]
[WhiteElo "2117"]
[BlackElo "2212"]
[Result "0-1"]
[Round "05"]
[TimeControl "180+1"]
[Date "2022.05.03"]
[WhiteClock "0:00:07"]
[BlackClock "0:00:14"]

1. e4 {[%clk 0:02:59]}  c5 {[%clk 0:02:59]} 2. Nf3 {[%clk 0:02:58]}  d6 {[%clk 0:03:00]} 3. d4 {[%clk 0:02:58]}  cxd4 {[%clk 0:03:01]} 4. Nxd4 {[%clk 0:02:57]}  Nf6 {[%clk 0:03:01]} 5. Nc3 {[%clk 0:02:56]}  g6 {[%clk 0:03:01]} 6. f3 {[%clk 0:02:54]}  Bg7 {[%clk 0:03:00]} 7. Be3 {[%clk 0:02:54]}  Nc6 {[%clk 0:03:01]} 8. Qd2 {[%clk 0:02:53]}  O-O {[%clk 0:03:01]} 9. O-O-O {[%clk 0:02:53]}  Nxd4 {[%clk 0:03:02]} 10. Bxd4 {[%clk 0:02:52]}  Be6 {[%clk 0:03:02]} 11. h4 {[%clk 0:02:46]}  Qa5 {[%clk 0:03:02]} 12. Kb1 {[%clk 0:02:42]}  Rfc8 {[%clk 0:03:02]} 13. a3 {[%clk 0:02:41]}  Rab8 {[%clk 0:03:02]} 14. h5 {[%clk 0:02:35]}  b5 {[%clk 0:02:59]} 15. hxg6 {[%clk 0:02:23]}  hxg6 {[%clk 0:02:55]} 16. Bxf6 {[%clk 0:02:13]}  Bxf6 {[%clk 0:02:49]} 17. Nd5 {[%clk 0:02:13]}  Qxd2 {[%clk 0:02:45]} 18. Nxf6+ {[%clk 0:02:13]}  Kg7 {[%clk 0:02:30]} 19. Rxd2 {[%clk 0:02:14]}  Kxf6 {[%clk 0:02:29]} 20. c3 {[%clk 0:02:09]}  a5 {[%clk 0:02:27]} 21. Rd4 {[%clk 0:02:07]}  Rc5 {[%clk 0:02:10]} 22. f4 {[%clk 0:02:05]}  Rbc8 {[%clk 0:02:00]} 23. Rh7 {[%clk 0:02:02]}  g5 {[%clk 0:01:41]} 24. g3 {[%clk 0:01:18]}  gxf4 {[%clk 0:01:40]} 25. gxf4 {[%clk 0:01:18]}  Rg8 {[%clk 0:01:36]} 26. Bd3 {[%clk 0:01:17]}  Bb3 {[%clk 0:01:24]} 27. e5+ {[%clk 0:01:13]}  dxe5 {[%clk 0:01:17]} 28. fxe5+ {[%clk 0:01:14]}  Rxe5 {[%clk 0:01:09]} 29. Rf4+ {[%clk 0:00:56]}  Ke6 {[%clk 0:01:09]} 30. Rf1 {[%clk 0:00:56]}  f6 {[%clk 0:01:06]} 31. Rh4 {[%clk 0:00:29]}  Rg3 {[%clk 0:01:02]} 32. Rd4 {[%clk 0:00:28]}  Rge3 {[%clk 0:00:58]} 33. Rc1 {[%clk 0:00:25]}  Re1 {[%clk 0:00:56]} 34. Rd8 {[%clk 0:00:20]}  Ba2+ {[%clk 0:00:47]} 35. Kc2 {[%clk 0:00:19]}  Bb3+ {[%clk 0:00:43]} 36. Kb1 {[%clk 0:00:19]}  Rxc1+ {[%clk 0:00:41]} 37. Kxc1 {[%clk 0:00:19]}  Rg5 {[%clk 0:00:24]} 38. Rb8 {[%clk 0:00:17]}  Ba4 {[%clk 0:00:24]} 39. b3 {[%clk 0:00:09]}  Bxb3 {[%clk 0:00:21]} 40. Bxb5 {[%clk 0:00:10]}  Bd5 {[%clk 0:00:17]} 41. c4 {[%clk 0:00:09]}  Be4 {[%clk 0:00:16]} 42. Rb6+ {[%clk 0:00:08]}  Kf7 {[%clk 0:00:16]} 43. Ra6 {[%clk 0:00:09]}  f5 {[%clk 0:00:16]} 44. Rxa5 {[%clk 0:00:09]}  Rg2 {[%clk 0:00:16]} 45. Ra8 {[%clk 0:00:06]}  f4 {[%clk 0:00:15]} 46. c5 {[%clk 0:00:06]}  Bxa8 {[%clk 0:00:14]} 47. c6 {[%clk 0:00:06]}  Bxc6 {[%clk 0:00:13]} 48. Bxc6 {[%clk 0:00:07]}  Rg3 {[%clk 0:00:13]} 49. Bd5+ {[%clk 0:00:07]}  Kf6 {[%clk 0:00:14]} 0-1


[Site "https://www.chess.com"]

[Event "Titled Tuesday Blitz May 03 Early 2022"]
[White "Mohammadian, Mohammad"]
[Black "Todorovic, Bojan"]
[WhiteFideId "12566055"]
[BlackFideId "917087"]
[WhiteElo "1544"]
[BlackElo "2266"]
[Result "0-1"]
[Round "05"]
[TimeControl "180+1"]
[Date "2022.05.03"]
[WhiteClock "0:00:47"]
[BlackClock "0:00:10"]

1. e4 {[%clk 0:03:00]}  e5 {[%clk 0:02:57]} 2. Nf3 {[%clk 0:03:00]}  Nc6 {[%clk 0:02:57]} 3. Bb5 {[%clk 0:02:59]}  Nf6 {[%clk 0:02:56]} 4. O-O {[%clk 0:02:58]}  Nxe4 {[%clk 0:02:55]} 5. Re1 {[%clk 0:02:57]}  Nd6 {[%clk 0:02:54]} 6. Bxc6 {[%clk 0:02:57]}  dxc6 {[%clk 0:02:54]} 7. Nxe5 {[%clk 0:02:57]}  Be7 {[%clk 0:02:54]} 8. d4 {[%clk 0:02:56]}  O-O {[%clk 0:02:53]} 9. Bf4 {[%clk 0:02:51]}  Bg5 {[%clk 0:02:36]} 10. Bxg5 {[%clk 0:02:49]}  Qxg5 {[%clk 0:02:35]} 11. Nf3 {[%clk 0:02:48]}  Qf6 {[%clk 0:02:24]} 12. Nbd2 {[%clk 0:02:45]}  Bg4 {[%clk 0:02:19]} 13. c3 {[%clk 0:02:45]}  a5 {[%clk 0:02:03]} 14. Qb3 {[%clk 0:02:44]}  a4 {[%clk 0:02:00]} 15. Qc2 {[%clk 0:02:44]}  Bf5 {[%clk 0:01:39]} 16. Qd1 {[%clk 0:02:39]}  Rfe8 {[%clk 0:01:31]} 17. b3 {[%clk 0:02:37]}  Rxe1+ {[%clk 0:01:03]} 18. Qxe1 {[%clk 0:02:35]}  Nb5 {[%clk 0:01:03]} 19. c4 {[%clk 0:02:28]}  Nxd4 {[%clk 0:01:00]} 20. Nxd4 {[%clk 0:02:25]}  Qxd4 {[%clk 0:01:00]} 21. Nf3 {[%clk 0:02:20]}  Qb2 {[%clk 0:00:47]} 22. bxa4 {[%clk 0:02:12]}  Be6 {[%clk 0:00:46]} 23. Rb1 {[%clk 0:02:07]}  Qxa2 {[%clk 0:00:45]} 24. Rxb7 {[%clk 0:02:05]}  Qxa4 {[%clk 0:00:43]} 25. Ne5 {[%clk 0:01:54]}  h6 {[%clk 0:00:34]} 26. Rxc7 {[%clk 0:01:47]}  Qa1 {[%clk 0:00:23]} 27. Kf1 {[%clk 0:01:39]}  Qd4 {[%clk 0:00:16]} 28. Rb7 {[%clk 0:01:24]}  Ra1 {[%clk 0:00:14]} 29. Rb1 {[%clk 0:01:23]}  Rxb1 {[%clk 0:00:10]} 30. Qxb1 {[%clk 0:01:21]}  Qxe5 {[%clk 0:00:11]} 31. h3 {[%clk 0:01:19]}  Bxc4+ {[%clk 0:00:09]} 32. Kg1 {[%clk 0:01:18]}  Bd5 {[%clk 0:00:09]} 33. Qd1 {[%clk 0:01:13]}  Qg5 {[%clk 0:00:08]} 34. Qf1 {[%clk 0:01:12]}  Qxg2+ {[%clk 0:00:08]} 35. Qxg2 {[%clk 0:01:11]}  Bxg2 {[%clk 0:00:08]} 36. Kxg2 {[%clk 0:01:11]}  f5 {[%clk 0:00:08]} 37. Kf3 {[%clk 0:01:11]}  Kf7 {[%clk 0:00:08]} 38. Ke3 {[%clk 0:01:11]}  Ke6 {[%clk 0:00:09]} 39. Kd4 {[%clk 0:01:11]}  g5 {[%clk 0:00:08]} 40. f3 {[%clk 0:01:10]}  h5 {[%clk 0:00:08]} 41. Kc4 {[%clk 0:01:09]}  g4 {[%clk 0:00:09]} 42. hxg4 {[%clk 0:01:08]}  fxg4 {[%clk 0:00:08]} 43. fxg4 {[%clk 0:00:58]}  hxg4 {[%clk 0:00:08]} 44. Kd3 {[%clk 0:00:58]}  g3 {[%clk 0:00:09]} 45. Ke2 {[%clk 0:00:58]}  c5 {[%clk 0:00:09]} 46. Kf3 {[%clk 0:00:57]}  c4 {[%clk 0:00:09]} 47. Kxg3 {[%clk 0:00:57]}  c3 {[%clk 0:00:10]} 48. Kf3 {[%clk 0:00:58]}  c2 {[%clk 0:00:10]} 49. Ke2 {[%clk 0:00:58]}  c1=Q {[%clk 0:00:10]} 50. Kd3 {[%clk 0:00:58]}  Ke5 {[%clk 0:00:10]} 51. Ke2 {[%clk 0:00:56]}  Ke4 {[%clk 0:00:11]} 52. Kf2 {[%clk 0:00:56]}  Qe3+ {[%clk 0:00:10]} 53. Kg2 {[%clk 0:00:54]}  Kf4 {[%clk 0:00:10]} 54. Kf1 {[%clk 0:00:50]}  Qd2 {[%clk 0:00:10]} 55. Kg1 {[%clk 0:00:49]}  Kg3 {[%clk 0:00:10]} 56. Kf1 {[%clk 0:00:47]}  Qd1# {[%clk 0:00:10]} 0-1


[Site "https://www.chess.com"]

[Event "Titled Tuesday Blitz May 03 Early 2022"]
[White "Molina, Roberto Junio Brito"]
[Black "Nozdrachev, Leonid"]
[WhiteFideId "2109450"]
[BlackFideId "24113433"]
[WhiteElo "2783"]
[BlackElo "2518"]
[Result "1-0"]
[Round "05"]
[TimeControl "180+1"]
[Date "2022.05.03"]
[WhiteClock "0:00:15"]
[BlackClock "0:00:01"]

1. d4 {[%clk 0:02:35]}  d6 {[%clk 0:02:58]} 2. e4 {[%clk 0:02:33]}  Nf6 {[%clk 0:02:57]} 3. Nc3 {[%clk 0:02:32]}  e5 {[%clk 0:02:57]} 4. Nf3 {[%clk 0:02:30]}  Nbd7 {[%clk 0:02:56]} 5. Bc4 {[%clk 0:02:30]}  Be7 {[%clk 0:02:56]} 6. O-O {[%clk 0:02:29]}  O-O {[%clk 0:02:55]} 7. Re1 {[%clk 0:02:30]}  c6 {[%clk 0:02:52]} 8. a4 {[%clk 0:02:30]}  Qc7 {[%clk 0:02:51]} 9. b3 {[%clk 0:02:30]}  Re8 {[%clk 0:02:51]} 10. h3 {[%clk 0:02:29]}  Bf8 {[%clk 0:02:50]} 11. a5 {[%clk 0:02:16]}  exd4 {[%clk 0:02:40]} 12. Nxd4 {[%clk 0:02:16]}  d5 {[%clk 0:02:32]} 13. exd5 {[%clk 0:02:09]}  Rxe1+ {[%clk 0:02:33]} 14. Qxe1 {[%clk 0:02:10]}  cxd5 {[%clk 0:02:23]} 15. Nxd5 {[%clk 0:01:56]}  Nxd5 {[%clk 0:02:24]} 16. Bxd5 {[%clk 0:01:57]}  Nf6 {[%clk 0:01:37]} 17. Bc4 {[%clk 0:01:42]}  a6 {[%clk 0:01:28]} 18. Be3 {[%clk 0:01:40]}  Bd7 {[%clk 0:01:25]} 19. Qd2 {[%clk 0:01:35]}  Ne4 {[%clk 0:01:22]} 20. Qd3 {[%clk 0:01:34]}  Nc5 {[%clk 0:01:21]} 21. Qc3 {[%clk 0:01:29]}  Rc8 {[%clk 0:01:18]} 22. Rd1 {[%clk 0:01:24]}  Ne4 {[%clk 0:01:12]} 23. Qe1 {[%clk 0:01:24]}  h6 {[%clk 0:01:01]} 24. Nf3 {[%clk 0:01:08]}  Bb5 {[%clk 0:00:54]} 25. Bb6 {[%clk 0:00:48]}  Qe7 {[%clk 0:00:24]} 26. Rd4 {[%clk 0:00:47]}  Nd6 {[%clk 0:00:18]} 27. Qxe7 {[%clk 0:00:41]}  Bxe7 {[%clk 0:00:19]} 28. Bxb5 {[%clk 0:00:33]}  axb5 {[%clk 0:00:19]} 29. Rd2 {[%clk 0:00:24]}  Kf8 {[%clk 0:00:19]} 30. Ne5 {[%clk 0:00:20]}  Ke8 {[%clk 0:00:19]} 31. Re2 {[%clk 0:00:19]}  b4 {[%clk 0:00:10]} 32. g4 {[%clk 0:00:14]}  Kf8 {[%clk 0:00:08]} 33. Kg2 {[%clk 0:00:13]}  Bg5 {[%clk 0:00:06]} 34. Kg3 {[%clk 0:00:10]}  Kg8 {[%clk 0:00:05]} 35. f4 {[%clk 0:00:10]}  Bf6 {[%clk 0:00:05]} 36. Nd3 {[%clk 0:00:09]}  Bc3 {[%clk 0:00:05]} 37. Kf3 {[%clk 0:00:09]}  Nb5 {[%clk 0:00:05]} 38. Re4 {[%clk 0:00:07]}  Na3 {[%clk 0:00:05]} 39. Re2 {[%clk 0:00:07]}  g6 {[%clk 0:00:03]} 40. f5 {[%clk 0:00:07]}  gxf5 {[%clk 0:00:03]} 41. gxf5 {[%clk 0:00:08]}  Kg7 {[%clk 0:00:04]} 42. Nf4 {[%clk 0:00:08]}  Kf6 {[%clk 0:00:04]} 43. Nd5+ {[%clk 0:00:08]}  Kg7 {[%clk 0:00:04]} 44. Rg2+ {[%clk 0:00:07]}  Kh7 {[%clk 0:00:04]} 45. Ke4 {[%clk 0:00:06]}  Re8+ {[%clk 0:00:04]} 46. Kd3 {[%clk 0:00:06]}  Rc8 {[%clk 0:00:04]} 47. f6 {[%clk 0:00:06]}  Be5 {[%clk 0:00:03]} 48. Rg7+ {[%clk 0:00:06]}  Kh8 {[%clk 0:00:03]} 49. Rxf7 {[%clk 0:00:07]}  Nb1 {[%clk 0:00:02]} 50. Rd7 {[%clk 0:00:07]}  Nc3 {[%clk 0:00:02]} 51. Nxc3 {[%clk 0:00:06]}  Rxc3+ {[%clk 0:00:02]} 52. Ke4 {[%clk 0:00:06]}  Bxf6 {[%clk 0:00:03]} 53. Rxb7 {[%clk 0:00:06]}  Rxc2 {[%clk 0:00:03]} 54. a6 {[%clk 0:00:06]}  Ra2 {[%clk 0:00:03]} 55. a7 {[%clk 0:00:07]}  Bg5 {[%clk 0:00:02]} 56. Rb8+ {[%clk 0:00:07]}  Kg7 {[%clk 0:00:02]} 57. a8=Q {[%clk 0:00:07]}  Rxa8 {[%clk 0:00:03]} 58. Rxa8 {[%clk 0:00:08]}  Kg6 {[%clk 0:00:03]} 59. Bd4 {[%clk 0:00:08]}  Bd2 {[%clk 0:00:03]} 60. Ra6+ {[%clk 0:00:09]}  Kh5 {[%clk 0:00:03]} 61. Kf3 {[%clk 0:00:09]}  Kh4 {[%clk 0:00:02]} 62. Kg2 {[%clk 0:00:10]}  Kg5 {[%clk 0:00:02]} 63. Rb6 {[%clk 0:00:11]}  Kf5 {[%clk 0:00:02]} 64. Bc5 {[%clk 0:00:11]}  Ke4 {[%clk 0:00:01]} 65. Bxb4 {[%clk 0:00:12]}  Be3 {[%clk 0:00:02]} 66. Rb5 {[%clk 0:00:12]}  Kd3 {[%clk 0:00:02]} 67. Be1 {[%clk 0:00:12]}  Kc2 {[%clk 0:00:02]} 68. Bf2 {[%clk 0:00:13]}  Bd2 {[%clk 0:00:01]} 69. Bc5 {[%clk 0:00:12]}  Kc3 {[%clk 0:00:01]} 70. Kf3 {[%clk 0:00:12]}  Kd3 {[%clk 0:00:01]} 71. h4 {[%clk 0:00:12]}  Bc1 {[%clk 0:00:01]} 72. h5 {[%clk 0:00:13]}  Bg5 {[%clk 0:00:01]} 73. b4 {[%clk 0:00:13]}  Bc1 {[%clk 0:00:01]} 74. Rb6 {[%clk 0:00:14]}  Kc4 {[%clk 0:00:02]} 75. Ke4 {[%clk 0:00:14]}  Bd2 {[%clk 0:00:01]} 76. Rg6 {[%clk 0:00:15]} 1-0


[Site "https://www.chess.com"]